Workbook

Sheet Sheet1
A1: 2025年生产部10月接收处置记录统计表 | R1: 自产废物
A2: 废物名称 | B2: 危废代码 | C2: 形态 | D2: 上月结存 | E2: 本月接收量 | F2: 处置量及工艺 | J2: 库存量 | K2: 1#库 | L2: 2#库 | M2: 干化 | N2: 罐区 | O2: 料坑 | R2: 废物名称 | S2: 上月结存 | T2: 本月产生量 | U2: 包数 | V2: 本月处理 | Y2: 库存 | Z2: 备注 | AA2: 存储位置
F3: 固废焚烧 | G3: 废液焚烧 | H3: 清洗大桶 | I3: 污泥干化 | K3: 1#库 | L3: 2#库 | M3: 干化 | N3: 罐区 | O3: 料坑 | V3: 焚烧处置 | W3: 液体炉 | X3: 拉运
A4: 蒸馏残液 | B4: 271-001-02 | C4: 液态 | D4: 0 | E4: =23.9525+7.382 -> 31.3345 | J4: =D4+E4-F4-G4-H4-I4 -> 31.3345 | K4: 31.3345 | P4: =K4+L4+M4+N4+O4 -> 31.3345 | R4: 炉渣（回转窑） | S4: 157.58 | T4: =121.415-23.425 -> 97.99 | U4: =91-17 -> 74 | X4: 89.8 | Y4: =S4+T4-V4-X4-W4 -> 165.77
A5: 精馏残渣 | B5: 271-001-02 | C5: 固态 | D5: 2.8592 | F5: =2.8592 -> 2.8592 | J5: 0 | P5: 0 | R5: 飞灰（回转窑） | S5: 11.853 | T5: 19.02 | U5: 43 | X5: 20.49 | Y5: 10.383
A6: 过滤介质 | B6: 271-003-02 | C6: 固态 | D6: 2.055 | F6: =2.055 -> 2.055 | J6: 0 | P6: 0 | R6: 飞灰（废液炉） | S6: 0.48 | T6: 3.195 | U6: 8 | X6: 2.71 | Y6: 0.965
A7: 废盐 | B7: 271-005-02 | C7: 固态 | D7: 8.64 | F7: =8.64 -> 8.64 | J7: 0 | P7: 0 | R7: 废油渣/泥 | S7: 0 | Y7: 0 | Z7: 精馏切水后剩下的罐底泥
A8: 一般废药品 | B8: 900-002-03 | C8: 固态 | D8: 0 | E8: =6.66+0.1412 -> 6.8012 | F8: =6.66+0.1412 -> 6.8012 | J8: 0 | P8: 0 | R8: 含油污水 | S8: 0 | T8: 0.52 | V8: 0.52 | Y8: 0 | Z8: 蒸汽清洗过程 | AA8: 2#库
A9: 废药物、药品 杀虫剂、磷化铝等 | B9: 900-003-04 | C9: 固态 | D9: 0 | E9: =0.14 -> 0.14 | J9: 0.14 | K9: 0.14 | P9: 0.14 | R9: 废商标 | S9: 0 | T9: 0.26 | V9: 0.26 | Y9: 0 | Z9: 除商标 | AA9: 2#库
A10: 废有机溶剂及废物 | B10: 900-402-06 | C10: 液态 | D10: 137.243 | E10: =17.562+0.25+4.8875 -> 22.6995 | G10: =22+6 -> 28 | J10: 131.9425 | L10: 131.9425 | P10: 131.9425 | R10: 废残液 | S10: 0 | T10: 0.71 | V10: 0.71 | Y10: 0 | Z10: 抽残液 | AA10: 2#库
A11: 清洗剂、渗透剂包装物 | B11: 900-402-06 | C11: 固态 | D11: 0 | J11: 0 | P11: 0 | R11: 废渣 | S11: 0 | T11: 0.42 | V11: 0.42 | Y11: 0 | Z11: 清洗过程 | AA11: 2#库
A12: 废有机溶剂 | B12: 900-404-06 | C12: 液态 | D12: 122.3985 | E12: =26.15+26.85+1.966+26.7+26.6+26.94+26.59+11.04 -> 172.836 | F12: =7.13 -> 7.13 | G12: =16.5+33.48+11.5+34.03+15.056 -> 110.566 | J12: 177.5385 | L12: 177.5385 | P12: 177.5385 | R12: 漆渣 | S12: 0 | Y12: 0 | Z12: 清洗过程
A13: 废有机废液 | B13: 900-405-06 | C13: 液态 | D13: 4.5 | J13: 4.5 | L13: 4.5 | P13: 4.5 | R13: 污水厂污泥 | S13: 0 | T13: 2.3 | V13: 2.3 | Y13: 0 | Z13: 水处理后产生的污泥 | AA13: 2#库
A14: 废活性炭 | B14: 900-405-06 | C14: 固态 | D14: 0 | E14: =0.02375 -> 0.02375 | J14: 0.02375 | L14: 0.02375 | P14: 0.02375 | R14: 废清洗剂 | S14: 0 | Y14: 0 | Z14: 清洗剂清洗过程
A15: 废有机溶剂 | B15: 900-407-06 | C15: 液态 | D15: 150.424 | E15: =12.5965 -> 12.5965 | J15: 163.0205 | L15: 163.0205 | P15: 163.0205
A16: 危废污泥 | B16: 900-409-06 | C16: 固态 | D16: 83.22 | E16: =22.94+23+24.54+24.52+18.18 -> 113.18 | F16: =22.32+24.7+10+11.28+14.92 -> 83.22 | J16: 113.18 | L16: =113.18-50 -> 63.18 | O16: 50 | P16: 113.18
A17: 油污水 | B17: 251-001-08 | C17: 液态 | D17: 495.63 | E17: =1 -> 1 | F17: =1 -> 1 | G17: =11.1+22.12+16.66 -> 49.88 | J17: 445.75 | N17: =445.75-40 -> 405.75 | O17: 40 | P17: 445.75
A18: 清舱污泥（水） | B18: 251-001-08 | C18: 半固态 | D18: 4.78 | F18: =4.78 -> 4.78 | J18: 0 | P18: 0
A19: 废溶剂油 | B19: 291-001-08 | C19: 半固态 | D19: 51.22 | J19: 51.22 | K19: 51.22 | P19: 51.22
A20: 研磨泥 | B20: 900-200-08 | C20: 固态 | D20: 16.5285 | E20: =14.537 -> 14.537 | F20: =8+8.5285 -> 16.5285 | J20: 14.537 | L20: 14.537 | P20: 14.537
A21: HW08废油 | B21: 900-200-08 | C21: 液态 | D21: 27.643 | E21: =3.3 -> 3.3 | J21: 30.943 | K21: 15.183 | N21: 15.76 | P21: 30.943
A22: 废煤油 | B22: 900-201-08 | C22: 液态 | D22: 7.24 | J22: 7.24 | K22: 4.52 | N22: 2.72 | P22: 7.24
A23: 废润滑脂 | B23: 900-209-08 | C23: 半固态 | D23: 0 | E23: =0.04 -> 0.04 | F23: =0.04 -> 0.04 | J23: 0 | P23: 0
A24: 水处理浮渣及污泥 | B24: 900-210-08 | C24: 半固态 | D24: 105.475 | E24: =0.079+4.192 -> 4.271 | F24: =1.93+25.689+7.936+0.079 -> 35.634 | J24: 74.112 | K24: 9 | L24: 4.192 | N24: =60.92-20 -> 40.92 | O24: 20 | P24: 74.112
A25: 废机油、含油废水 | B25: 900-210-08 | C25: 液态 | D25: 57.84 | E25: =3.6+7.22 -> 10.82 | F25: =2.3 -> 2.3 | J25: 66.36 | K25: 22.52 | L25: 38.94 | N25: 4.9 | P25: 66.36
A26: 废油泥 | B26: 900-210-08 | C26: 固态 | D26: 75.1265 | E26: =10.332+13.37+5.931 -> 29.633 | F26: =0.06+3.3465 -> 3.4065 | J26: 101.353 | L26: 101.353 | P26: 101.353
A27: 废白土 | B27: 900-213-08 | C27: 固态 | D27: 0 | E27: =14.886+13.162 -> 28.048 | J27: 28.048 | L27: 28.048 | P27: 28.048
A28: 废矿物油 | B28: 900-214-08 | C28: 液态 | D28: 43.4797 | E28: =24.5401+0.08 -> 24.6201 | G28: =4.86+0.336 -> 5.196 | J28: 62.9038 | K28: 24.2 | N28: 38.7038 | P28: 62.9038
A29: 废矿物油 | B29: 900-217-08 | C29: 液态 | D29: 87.97255 | E29: =0.28+2+1 -> 3.28 | G29: =0.2+0.1787+0.12 -> 0.4987 | J29: 90.75385 | N29: 90.75385 | P29: 90.75385
A30: 废液压油 | B30: 900-218-08 | C30: 液态 | D30: 38.163 | E30: =1.6+1.52 -> 3.12 | J30: 41.283 | N30: 41.283 | P30: 41.283
A31: 废冷冻机油 | B31: 900-219-08 | C31: 液态 | D31: 13.88 | E31: =0.4 -> 0.4 | J31: 14.28 | N31: 14.28 | P31: 14.28
A32: 废矿物油与含矿物油废物 | B32: 900-220-08 | C32: 液态 | D32: 2.6 | J32: 2.6 | N32: 2.6 | P32: 2.6
A33: 废矿物油 | B33: 900-249-08 | C33: 液态 | D33: 166.92982 | E33: =0.275+3.72+0.1+28.36+0.05 -> 32.505 | G33: =10.82+21.78+10.715+0.317 -> 43.632 | J33: 155.80282 | K33: 3.64 | L33: 40.48 | N33: 111.68282 | P33: 155.80282
A34: 废矿物油、废油桶 | B34: 900-249-08 | C34: 固态 | D34: 24.39 | E34: =0.02+3.68+1+0.18+0.038+0.1+0.6+1.64 -> 7.258 | F34: =3.23+7.84+13.32+0.02+0.18+0.038 -> 24.628 | H34: 3.68 | J34: 3.34 | K34: 3.34 | P34: 3.34
A35: 废矿物油、油泥 | B35: 900-249-08 | C35: 半固态 | D35: 0.55 | E35: =5.08 -> 5.08 | F35: =0.55+5.08 -> 5.63 | J35: 0 | P35: 0
A36: 废水、乳化液 | B36: 900-007-09 | C36: 液态 | D36: 36.4155 | E36: =5.736+2.004+0.897+0.313 -> 8.95 | G36: =16.797 -> 16.797 | J36: 28.5685 | L36: 28.5685 | P36: 28.5685
A37: 沉淀渣 | B37: 900-007-09 | C37: 半固态 | D37: 10.8 | J37: 10.8 | L37: 10.8 | P37: 10.8
A38: 废乳化液 | B38: 900-006-09 | C38: 液态 | D38: 94.753 | E38: =5.3975+20.8+5.08+0.6+6.05 -> 37.9275 | G38: =9.22+9.2975 -> 18.5175 | J38: 114.163 | L38: 114.163 | P38: 114.163
A39: 砂轮沫 | B39: 900-006-09 | C39: 固态 | D39: 3.4 | F39: =3.4 -> 3.4 | J39: 0 | P39: 0
A40: 废水汽提塔排重质烃 | B40: 252-009-11 | C40: 液态 | D40: 53.64 | J40: 53.64 | L40: 53.64 | P40: 53.64
A41: 煤焦油、釜残 | B41: 900-013-11 | C41: 固态 | D41: 6.85 | E41: =5.6685+7.426 -> 13.0945 | J41: 19.9445 | K41: 4.56 | L41: 15.3845 | P41: 19.9445
A42: 煤焦油 | B42: 900-013-11 | C42: 液态 | D42: 50.6335 | F42: =3.7225+2.907 -> 6.6295 | J42: 44.004 | K42: 21.604 | L42: 22.4 | P42: 44.004
A43: 釜残 | B43: 900-013-11 | C43: 半固态 | D43: 504.981 | E43: =57.78+30.78+33.38+23.358+31.6455 -> 176.9435 | F43: =8.78+7+3+3+9+11.58+6+3+6 -> 57.36 | J43: 624.5645 | K43: =598.88-30 -> 568.88 | L43: 25.6845 | O43: 30 | P43: 624.5645
A44: 煤焦油 | B44: 451-003-11 | C44: 液态 | D44: 873.98 | E44: =48.26+49.7+47.32+51.2+50.46 -> 246.94 | J44: 1120.92 | L44: 99.1 | N44: 1021.82 | P44: 1120.92
A45: 漆渣 | B45: 900-250-12 | C45: 固态 | D45: 14.1755 | E45: =26.428+11.77 -> 38.198 | F45: =14.1755+26.428 -> 40.6035 | J45: 11.77 | K45: 11.77 | P45: 11.77
A46: 漆渣 | B46: 900-250-12 | C46: 半固态 | D46: 0.408 | E46: =0.746 -> 0.746 | F46: =0.408+0.746 -> 1.154 | J46: 0 | P46: 0
A47: 废漆渣 | B47: 900-252-12 | C47: 固态 | D47: 241.7605 | E47: =58.543+10.665+17.9685+2.58+2.86+19.08765+17.02+13.72+3.0325+11.47 -> 156.94665 | F47: =38.611+40.78+14.2565+25.273+56.5615+45.195+4.94+0.00765 -> 225.62465 | J47: 173.0825 | K47: =173.0825-130 -> 43.0825 | O47: 130 | P47: 173.0825
A48: 漆渣 | B48: 900-252-12 | C48: 半固态 | D48: 0 | E48: =0.22 -> 0.22 | F48: =0.22 -> 0.22 | J48: 0 | P48: 0
A49: 废油墨 | B49: 900-253-12 | C49: 液态 | D49: 0 | E49: =3 -> 3 | J49: 3 | K49: 3 | P49: 3
A50: 硒鼓墨盒 | B50: 900-299-12 | C50: 固态 | D50: 0.18 | E50: =0.05 -> 0.05 | F50: =0.18 -> 0.18 | J50: 0.05 | K50: 0.05 | P50: 0.05
A51: 废水处理污泥 | B51: 264-012-12 | C51: 半固态 | D51: 0 | E51: =0.2 -> 0.2 | J51: 0.2 | L51: 0.2 | P51: 0.2
A52: 发泡废料，废胶水 | B52: 900-014-13 | C52: 半固态 | D52: 0.4 | E52: =8.814+0.184 -> 8.998 | F52: =0.4+8.814 -> 9.214 | J52: 0.184 | K52: 0.184 | P52: 0.184
A53: 发泡废料，废胶水 | B53: 900-014-13 | C53: 固态 | D53: 22.24 | E53: =6.5+9.51+13.22+2.8+9.96+15.45 -> 57.44 | F53: =10.64+15+9.51+13.22+2.8 -> 51.17 | J53: 28.51 | K53: 28.51 | P53: 28.51
A54: 废树脂 | B54: 900-015-13 | C54: 固态 | D54: 0 | E54: =6.6278+0.1+4.43 -> 11.1578 | F54: =6.6278 -> 6.6278 | J54: 4.53 | K54: 4.53 | P54: 4.53
A55: 有机树脂废物 | B55: 900-016-13 | C55: 半固态 | D55: 4.296 | E55: =3.753 -> 3.753 | F55: =3.753 -> 3.753 | J55: 4.296 | K55: 4.296 | P55: 4.296
A56: PBL真空废液 | B56: 265-101-13 | C56: 液态 | D56: 17.52 | J56: 17.52 | K56: 17.52 | P56: 17.52
A57: 不合格有机树脂 | B57: 265-101-13 | C57: 半固态 | D57: 0 | E57: =1.1 -> 1.1 | F57: =1.1 -> 1.1 | J57: 0 | P57: 0
A58: 污水处理站污泥 | B58: 265-104-13 | C58: 固态 | D58: 0 | E58: =1 -> 1 | F58: =1 -> 1 | J58: 0 | P58: 0
A59: 废显影液 | B59: 900-019-16 | C59: 液态 | D59: 0 | E59: =0.055 -> 0.055 | F59: =0.055 -> 0.055 | J59: 0 | P59: 0
A60: 废滤芯、污泥 | B60: 336-055-17 | C60: 固态 | D60: 4.875 | F60: =4.875 -> 4.875 | J60: 0 | P60: 0
A61: 磷化污泥 | B61: 336-064-17 | C61: 固态 | D61: 14.1115 | E61: =10.14+9.56+6.559 -> 26.259 | F61: =12.14+1.9715 -> 14.1115 | J61: 26.259 | L61: 26.259 | P61: 26.259
A62: 金属表面处理污泥 | B62: 336-064-17 | C62: 半固态 | D62: 0 | J62: 0 | P62: 0
A63: 金属表面处理污泥 | B63: 336-064-17 | C63: 液态 | D63: 2.48 | E63: =19.6+0.468 -> 20.068 | F63: =0.468 -> 0.468 | J63: 22.08 | L63: 22.08 | P63: 22.08
A64: 污泥 | B64: 336-069-17 | C64: 液态 | D64: 0 | E64: =0.835 -> 0.835 | J64: 0.835 | L64: 0.835 | P64: 0.835
A65: 污泥 | B65: 336-069-17 | C65: 固态 | D65: 0 | E65: =4.845+15.7 -> 20.545 | J65: 20.545 | L65: 20.545 | P65: 20.545
A66: 活性炭 | B66: 772-005-18 | C66: 固态 | D66: 0 | E66: =0.1 -> 0.1 | J66: 0.1 | K66: 0.1 | P66: 0.1
A67: 废抗燃油 | B67: 900-033-37 | C67: 液态 | D67: 0 | E67: =0.74 -> 0.74 | F67: =0.74 -> 0.74 | J67: 0 | P67: 0
A68: 含酚废水 | B68: 261-070-39 | C68: 液态 | D68: 240.1 | G68: =5+33.98 -> 38.98 | J68: =D68+E68-F68-G68-H68-I68 -> 201.12 | N68: 201.12 | P68: =K68+L68+M68+N68+O68 -> 201.12
A69: 污泥 | B69: 261-084-45 | C69: 半固态 | D69: 0.26 | E69: =0.68 -> 0.68 | F69: =0.26 -> 0.26 | J69: 0.68 | L69: 0.68 | P69: 0.68
A70: 污泥 | B70: 261-084-45 | C70: 固态 | D70: 0 | E70: =26.22+1.97 -> 28.19 | J70: 28.19 | L70: 28.19 | P70: 28.19
A71: 含油废物 | B71: 900-041-49 | C71: 固态 | D71: 239.85 | E71: =8.61+8.585+10.91+22.1+15.53+16.6204+37.6085+18.203+9.47+2.3095+32.2246+11.61+20.207+6.22+9.496+25.06 -> 254.764 | F71: =32.3992+40.5108+47.1385+25.2655+32.9785+49.5995+69.091+7.8+48.5055 -> 353.2885 | H71: =2.68+1.96+3.86 -> 8.5 | J71: 132.8255 | K71: =111.5955-80 -> 31.5955 | L71: 21.23 | O71: 80 | P71: 132.8255
A72: 废酸碱袋 | B72: 900-042-49 | C72: 固态 | D72: 231.1725 | E72: =0.311 -> 0.311 | F72: =31.06+58.7195+0.253+54.82+44.66+41.66+0.311 -> 231.4835 | J72: 0 | P72: 0
A73: 污泥 | B73: 772-006-49 | C73: 固态 | D73: 0 | E73: =4.4+5 -> 9.4 | J73: 9.4 | L73: 9.4 | P73: 9.4
A74: 污泥 | B74: 772-006-49 | C74: 半固态 | D74: 0 | E74: =2+0.595 -> 2.595 | J74: 2.595 | L74: 2.595 | P74: 2.595
A75: 废活性炭 | B75: 900-039-49 | C75: 固态 | D75: 14.595 | E75: =2.6835+0.82+0.1+19.016 -> 22.6195 | F75: =9.377+0.05+0.17+1.07+3.928 -> 14.595 | J75: 22.6195 | K75: 2.8 | L75: =19.8195-10 -> 9.8195 | O75: 10 | P75: 22.6195
A76: 废水污泥 | B76: 900-046-49 | C76: 固态 | D76: 3.017 | F76: =3.017 -> 3.017 | J76: 0 | P76: 0
A77: 过期化学药品 | B77: 900-047-49 | C77: 固态 | D77: 1.24 | E77: =0.431+0.1694+0.56 -> 1.1604 | F77: =0.14+1.1+0.431+0.1694 -> 1.8404 | J77: 0.56 | L77: 0.56 | P77: 0.56
A78: 乙腈、异丙酮、废液 | B78: 900-047-49 | C78: 液态 | D78: 37.1996 | E78: =1.909+2.1875+3.162+1.0606+3.8789+3.356+2+2.99 -> 20.544 | F78: =0.6 -> 0.6 | G78: =0.66+0.858+4.435+5.3495 -> 11.3025 | J78: 45.8411 | L78: 45.8411 | P78: 45.8411
A79: 危险化学品 | B79: 900-999-49 | C79: 固态 | D79: 0.03 | E79: =0.72 -> 0.72 | F79: =0.03 -> 0.03 | J79: 0.72 | K79: 0.72 | P79: 0.72
A80: 过期面膜原料、残液 | B80: 900-999-49 | C80: 液态 | D80: 16.48 | E80: =0.771 -> 0.771 | J80: 17.251 | K80: 0.771 | L80: 16.48 | P80: 17.251
A81: 废催化剂 | B81: 261-151-50 | C81: 固态 | D81: 0 | E81: =0.1 -> 0.1 | J81: 0.1 | L81: 0.1 | P81: 0.1
A82: 小计： | D82: 4472.63137 | E82: =SUM(E4:E81) -> 1704.6454 | F82: =SUM(F4:F81) -> 1238.05275 | G82: =SUM(G4:G81) -> 323.3697 | H82: =SUM(H4:H81) -> 12.18 | I82: =SUM(I4:I81) -> 0 | J82: 4603.67432 | K82: =SUM(K4:K81) -> 909.0705 | L82: 1342.31035 | M82: 0 | N82: 1992.29347 | O82: 360 | P82: 4603.67432
A83: 合计： | F83: =F82+G82+H82 -> 1573.60245
